bitfinex-derivatives/quotes_BTCF0:USTF0_20240814
["timestamp","ask_amount","ask_price","bid_price","bid_amount"]
[1723605952627,0.02655339,61013.0,61012.0,0.083922]
[1723605952827,0.02655339,61014.0,61012.0,0.083922]
[1723605953030,0.1133,61015.0,61012.0,0.083922]
[1723605953031,0.02655339,61013.0,61012.0,0.083922]
[1723605953428,0.02655339,61014.0,61012.0,0.083922]
[1723605953730,0.1133,61015.0,61012.0,0.083922]
[1723605953731,0.0581876,61013.0,61012.0,0.083922]
[1723605953930,0.03163421,61013.0,61012.0,0.083922]
[1723605954933,0.03163469,61013.0,61012.0,0.083922]
[1723605955133,0.14493469,61013.0,61012.0,0.083922]
[1723605955335,0.17148749,61013.0,61012.0,0.083922]
[1723605956638,0.17148749,61013.0,61012.0,0.002]
[1723605959039,0.17148749,61013.0,61012.0,0.3628]
[1723605959934,0.17148661,61013.0,61012.0,0.3628]
[1723605961738,0.1133,61013.0,61012.0,0.3628]
[1723605962139,0.195221,61013.0,61012.0,0.3628]
[1723605962345,0.195221,61013.0,61012.0,0.002]
[1723605969348,0.081921,61013.0,61012.0,0.002]
[1723605969548,0.195221,61013.0,61012.0,0.002]
[1723605970445,0.3608,61016.0,61012.0,0.002]
[1723605970647,0.1133,61014.0,61012.0,0.3628]
[1723605970848,0.1233,61014.0,61012.0,0.3628]
[1723605971544,0.1233,61014.0,61012.0,0.3608]
[1723605971746,0.1233,61014.0,61012.0,0.3628]
[1723605972051,0.01,61014.0,61013.0,0.1133]
[1723605973147,0.01,61014.0,61012.0,0.3628]
[1723605974646,0.01,61014.0,61012.0,0.3618]
[1723605975445,0.1233,61014.0,61013.0,0.001]
[1723605977952,0.1133,61014.0,61013.0,0.001]
[1723605978846,0.1133,61014.0,61013.0,0.002]
[1723605980646,0.1133,61014.0,61013.0,0.01075082]
[1723605980841,0.00016396,61019.0,61018.0,0.081914]
[1723605981052,0.3608,61028.0,61018.0,0.96574]
[1723605981251,0.1133,61026.0,61024.0,0.1133]
[1723605981468,0.1133,61026.0,61023.0,0.3608]
[1723605981651,0.3608,61028.0,61023.0,0.3608]
[1723605981652,0.1133,61027.0,61023.0,0.3608]
[1723605981954,0.1133,61027.0,61026.0,0.081903]
[1723605984555,0.1133,61027.0,61026.0,0.082903]
[1723605984854,0.1133,61027.0,61026.0,0.083903]
[1723605985456,0.3608,61028.0,61026.0,0.083903]
[1723605985657,0.4741,61028.0,61026.0,0.083903]
[1723605985857,0.4741,61028.0,61026.0,0.09256033]
[1723605986258,0.1133,61028.0,61026.0,0.09256033]
[1723605986457,0.1133,61030.0,61027.0,0.1133]
[1723605986658,0.1133,61030.0,61028.0,0.3608]
[1723605987049,0.09049945,61031.0,61028.0,0.3608]
[1723605987249,0.081896,61031.0,61029.0,0.1133]
[1723605988359,0.081896,61031.0,61028.0,0.3618]
[1723605988360,0.1133,61030.0,61028.0,0.3618]
[1723605988859,0.1133,61030.0,61028.0,0.3608]
[1723605989060,0.1133,61030.0,61029.0,0.002]
[1723605990755,0.1133,61030.0,61029.0,0.001]
[1723605991157,0.195196,61030.0,61028.0,0.3628]
[1723605991358,0.195196,61030.0,61029.0,0.001]
[1723605991862,0.195196,61030.0,61029.0,0.002]
[1723605992257,0.195196,61030.0,61029.0,0.001]
[1723605994265,0.195196,61030.0,61029.0,0.002]
[1723605995462,0.637892,61030.0,61029.0,0.002]
[1723605995662,0.86236,61030.0,61019.0,0.00024599]
[1723605995867,0.3708,61030.0,61025.0,0.081902]
[1723605996069,0.195201,61026.0,61025.0,0.081902]
[1723605996769,0.081901,61026.0,61025.0,0.081902]
[1723605996963,0.081901,61026.0,61025.0,0.195202]
[1723605997166,0.081901,61026.0,61025.0,0.196202]
[1723605997671,0.081901,61026.0,61025.0,0.195202]
[1723605997967,0.081901,61026.0,61025.0,0.196202]
[1723605998665,0.081901,61026.0,61025.0,0.197202]
[1723606000770,0.195201,61026.0,61025.0,0.083902]
[1723606000971,0.195201,61026.0,61025.0,0.002]
[1723606010572,0.081901,61026.0,61025.0,0.002]
[1723606010772,0.195201,61026.0,61025.0,0.002]
[1723606012966,0.195201,61026.0,61020.0,0.081909]
[1723606012967,0.081909,61020.0,61019.0,0.00024599]
[1723606013276,0.556009,61020.0,61019.0,0.00024599]
[1723606014177,0.556009,61020.0,61019.0,0.00124599]
[1723606014479,0.556009,61020.0,61019.0,0.00224599]
[1723606014868,0.081909,61020.0,61019.0,0.00224599]
[1723606015078,0.195209,61020.0,61019.0,0.00224599]
[1723606015576,0.081909,61020.0,61019.0,0.00224599]
[1723606015776,0.195209,61020.0,61019.0,0.00224599]
[1723606015977,0.081909,61020.0,61019.0,0.00224599]
[1723606016181,0.195209,61020.0,61019.0,0.00224599]
[1723606020378,0.081909,61020.0,61019.0,0.00224599]
[1723606020577,0.195209,61020.0,61019.0,0.00224599]
[1723606022180,0.081909,61020.0,61019.0,0.00224599]
[1723606027179,0.00855832,61023.0,61020.0,0.081909]
[1723606027483,0.4741,61026.0,61022.0,0.1133]
[1723606028284,0.082905,61023.0,61022.0,0.1133]
[1723606029982,0.081905,61023.0,61022.0,0.1133]
[1723606030187,0.081905,61023.0,61022.0,0.1153]
[1723606030481,0.081905,61023.0,61022.0,0.002]
[1723606030885,0.082905,61023.0,61022.0,0.002]
[1723606034187,0.082905,61023.0,61022.0,0.01089806]
[1723606034894,0.001,61023.0,61022.0,0.01089806]
[1723606042087,0.001,61023.0,61022.0,0.002]
[1723606042286,0.443705,61023.0,61022.0,0.002]
[1723606044591,0.082905,61023.0,61022.0,0.002]
[1723606044992,0.001,61023.0,61022.0,0.002]
[1723606045183,0.001,61023.0,61022.0,0.197207]
[1723606045495,0.081891,61034.0,61029.0,0.081896]
[1723606045688,0.1133,61033.0,61029.0,0.081896]
[1723606046394,0.081891,61034.0,61031.0,0.1133]
[1723606046594,0.092891,61034.0,61031.0,0.1133]
[1723606047395,0.091891,61034.0,61031.0,0.1133]
[1723606047694,0.001,61033.0,61031.0,0.1133]
[1723606048496,0.001,61033.0,61031.0,0.1143]
[1723606049789,0.1133,61032.0,61031.0,0.001]
[1723606049994,0.1133,61032.0,61031.0,0.002]
[1723606050891,0.195193,61032.0,61031.0,0.002]
[1723606052501,0.1133,61032.0,61031.0,0.002]
[1723606053801,0.36945613,61035.0,61031.0,0.002]
[1723606053995,0.1133,61033.0,61031.0,0.002]
[1723606054705,0.36945613,61035.0,61034.0,0.081891]
[1723606054898,0.3608,61042.0,61032.0,0.1133]
[1723606055094,0.1133,61039.0,61035.0,0.1133]
[1723606055294,0.195181,61041.0,61038.0,0.1133]
[1723606055994,0.1133,61039.0,61035.0,0.1133]
[1723606057111,0.1133,61039.0,61038.0,0.001]
[1723606057509,0.1133,61039.0,61038.0,0.002]
[1723606057710,0.1133,61039.0,61038.0,0.001]
[1723606058115,0.1133,61039.0,61035.0,0.1143]
[1723606058308,0.1133,61039.0,61035.0,0.1153]
[1723606059112,0.195185,61039.0,61035.0,0.1153]
[1723606059412,0.1133,61036.0,61035.0,0.002]
[1723606059614,0.195188,61036.0,61033.0,0.00024578]
[1723606060210,0.36955184,61042.0,61033.0,0.00024578]
[1723606060402,0.081883,61040.0,61038.0,0.1133]
[1723606061613,0.081883,61040.0,61036.0,0.1133]
[1723606061915,0.00875184,61042.0,61038.0,0.1143]
[1723606062110,0.195179,61044.0,61041.0,0.1133]
[1723606062511,0.1133,61042.0,61039.0,0.1133]
[1723606062715,0.0653222,61040.0,61039.0,0.1133]
[1723606063718,0.05816215,61040.0,61039.0,0.1133]
[1723606064109,0.05816215,61040.0,61039.0,1.086664]
[1723606064110,0.03162091,61040.0,61039.0,1.086664]
[1723606064304,0.1306444,61046.0,61039.0,1.086664]
[1723606064305,0.11431385,61048.0,61047.0,0.081873]
[1723606064516,0.02653834,61048.0,61047.0,0.555973]
[1723606064715,0.11431385,61054.0,61048.0,0.081871]
[1723606064918,0.00873491,61054.0,61052.0,0.4741]
[1723606065109,0.06688397,61054.0,61052.0,0.4741]
[1723606065302,0.05914906,61053.0,61052.0,0.4741]
[1723606065517,0.02753527,61053.0,61052.0,0.4741]
[1723606065713,0.02753525,61053.0,61052.0,0.4741]
[1723606066012,0.14083525,61053.0,61049.0,0.0453]
[1723606066222,0.14083525,61053.0,61051.0,0.1133]
[1723606066223,0.02653525,61052.0,61051.0,0.1133]
[1723606066717,0.001,61053.0,61052.0,0.001]
[1723606067507,0.001,61053.0,61052.0,0.04851958]
[1723606069113,0.001,61053.0,61052.0,0.04951958]
[1723606069308,0.001,61053.0,61052.0,0.05051958]
[1723606070114,0.001,61053.0,61052.0,0.002]
[1723606070311,0.001,61053.0,61052.0,0.05051958]
[1723606072610,0.001,61053.0,61052.0,0.002]
[1723606073212,0.001,61053.0,61052.0,0.05051958]
[1723606073420,0.001,61053.0,61052.0,0.002]
[1723606073619,0.001,61053.0,61052.0,0.00180001]
[1723606073620,0.15818037,61053.0,61052.0,0.00180001]
[1723606073820,0.22987407,61053.0,61052.0,0.00180001]
[1723606074217,0.22987407,61053.0,61052.0,0.36260001]
[1723606074411,0.22987407,61053.0,61052.0,0.00180001]
[1723606074618,0.29843919,61053.0,61052.0,0.00180001]
[1723606074823,0.09922967,61053.0,61052.0,0.00180001]
[1723606075020,0.06761491,61053.0,61052.0,0.00180001]
[1723606075323,0.05915049,61053.0,61052.0,0.00180001]
[1723606075521,0.09922948,61053.0,61052.0,0.00180001]
[1723606077726,0.09922948,61053.0,61052.0,0.11510001]
[1723606078628,0.09922948,61053.0,61052.0,0.47590001]
[1723606079829,0.09922512,61053.0,61052.0,0.47590001]
[1723606080221,0.18109012,61053.0,61052.0,0.00180001]
[1723606080421,0.32157242,61053.0,61052.0,0.00180001]
[1723606080618,0.19109012,61053.0,61052.0,0.00180001]
[1723606080932,0.19109901,61053.0,61052.0,0.00180001]
[1723606081631,0.15101817,61053.0,61052.0,0.00180001]
[1723606082019,0.12448103,61053.0,61052.0,0.00180001]
[1723606082218,0.092865,61053.0,61052.0,0.00180001]
[1723606087327,0.17473,61053.0,61052.0,0.00180001]
[1723606087524,0.081873,61047.0,61046.0,0.00024578]
[1723606087724,0.555973,61047.0,61046.0,0.00024578]
[1723606088329,0.442673,61047.0,61046.0,0.00024578]
[1723606088530,0.442673,61047.0,61046.0,0.11354578]
[1723606088732,0.442673,61047.0,61046.0,0.11454578]
[1723606088932,0.442673,61047.0,61046.0,0.16305078]
[1723606089133,0.442673,61047.0,61046.0,0.16405078]
[1723606089438,0.3608,61047.0,61046.0,0.16405078]
[1723606089633,0.081869,61051.0,61046.0,0.11554578]
[1723606089834,0.081869,61050.0,61048.0,0.04862135]
[1723606090233,0.081869,61050.0,61049.0,0.04862135]
[1723606090435,0.081869,61050.0,61049.0,0.16192135]
[1723606090640,0.081869,61050.0,61049.0,0.1133]
[1723606090838,0.081869,61050.0,61049.0,0.16194472]
[1723606091242,0.081869,61050.0,61049.0,0.1133]
[1723606091627,0.081869,61050.0,61049.0,0.1143]
[1723606091628,0.083869,61050.0,61049.0,0.1143]
[1723606092338,0.083869,61050.0,61049.0,0.17910141]
[1723606092540,0.083869,61050.0,61049.0,0.1143]
[1723606093538,0.083869,61050.0,61049.0,0.1153]
[1723606094240,0.083869,61050.0,61049.0,0.002]
[1723606095037,0.002,61050.0,61049.0,0.1153]
[1723606096140,0.02853713,61050.0,61049.0,0.1153]
[1723606096342,0.10023398,61050.0,61049.0,0.1153]
[1723606097943,0.1002317,61050.0,61049.0,0.557971]
[1723606098446,0.1002317,61050.0,61049.0,1.05830016]
[1723606099352,0.001,61053.0,61049.0,1.37642916]
[1723606099650,0.001,61053.0,61051.0,0.442668]
[1723606099651,0.04925608,61052.0,61051.0,0.442668]
[1723606099952,0.02653252,61052.0,61051.0,0.555968]
[1723606100140,0.02652996,61052.0,61051.0,0.8741]
[1723606100341,0.02653139,61052.0,61051.0,1.334068]
[1723606100540,0.02653139,61052.0,61051.0,1.2522]
[1723606100735,0.001,61053.0,61052.0,0.081867]
[1723606101037,0.001,61053.0,61052.0,0.686567]
[1723606101242,0.02653133,61058.0,61057.0,0.08186]
[1723606101437,0.11448611,61060.0,61059.0,0.081857]
[1723606101641,0.14101744,61060.0,61059.0,0.195157]
[1723606101847,0.14101744,61060.0,61059.0,0.686477]
[1723606102837,0.14101744,61060.0,61059.0,0.195157]
[1723606103440,0.02653133,61060.0,61059.0,0.1133]
[1723606103639,0.02653133,61060.0,61059.0,0.1143]
[1723606104039,0.08185,61065.0,61059.0,0.1153]
[1723606104238,0.08185,61065.0,61062.0,0.1133]
[1723606105843,0.1133,61064.0,61059.0,0.002]
[1723606106045,0.1133,61060.0,61059.0,0.002]
[1723606106450,0.195156,61060.0,61059.0,0.002]
[1723606107040,0.195156,61060.0,61059.0,0.001]
[1723606107755,0.08186,61057.0,61054.0,0.1133]
[1723606107947,0.08186,61057.0,61056.0,0.1133]
[1723606108744,0.081855,61061.0,61056.0,0.1133]
[1723606108952,0.081855,61061.0,61053.0,0.081865]
[1723606108953,0.081855,61061.0,61060.0,0.1133]
[1723606109945,0.3608,61063.0,61060.0,0.1133]
[1723606110451,0.081859,61058.0,61056.0,0.04969403]
[1723606110644,0.442653,61063.0,61057.0,0.1133]
[1723606110844,0.555953,61063.0,61060.0,0.1133]
[1723606111050,0.05814328,61062.0,61060.0,0.1133]
[1723606111255,0.05814328,61061.0,61060.0,0.1133]
[1723606111451,0.05814328,61061.0,61060.0,0.1143]
[1723606111753,0.03161065,61061.0,61060.0,0.1143]
[1723606112345,0.03161065,61061.0,61060.0,0.1153]
[1723606112542,0.03161065,61061.0,61060.0,0.163]
[1723606112745,0.03161065,61061.0,61060.0,0.244856]
[1723606112957,0.03161065,61061.0,61060.0,0.243856]
[1723606113143,0.03161065,61061.0,61060.0,0.244856]
[1723606113849,0.11434596,61061.0,61060.0,0.243856]
[1723606114052,0.14595661,61061.0,61060.0,0.244856]
[1723606114849,0.09821712,61061.0,61060.0,0.244856]
[1723606115044,0.07168449,61061.0,61060.0,0.244856]
[1723606115250,0.02653263,61062.0,61060.0,0.244856]
[1723606115251,0.13066085,61065.0,61062.0,0.081853]
[1723606115449,0.081841,61072.0,61063.0,0.081852]
[1723606115450,0.05814097,61064.0,61063.0,0.081852]
[1723606115652,0.05814097,61064.0,61063.0,0.442652]
[1723606115653,0.11427146,61064.0,61063.0,0.442652]
[1723606115854,0.05814097,61064.0,61063.0,1.415784]
[1723606116052,0.02652714,61064.0,61063.0,1.333932]
[1723606116353,0.11427146,61071.0,61070.0,0.081843]
[1723606116553,0.05812932,61071.0,61070.0,0.442643]
[1723606116749,0.03160306,61071.0,61070.0,1.333883]
[1723606116951,0.11427146,61072.0,61071.0,0.081841]
[1723606117256,0.05812884,61072.0,61071.0,0.573081]
[1723606117455,0.02652487,61072.0,61071.0,0.973081]
[1723606117649,0.09788043,61072.0,61071.0,1.022081]
[1723606117854,0.09788043,61072.0,61071.0,1.304981]
[1723606118155,0.09788043,61072.0,61071.0,1.305981]
[1723606118352,0.09788043,61073.0,61072.0,0.08184]
[1723606118556,0.09788043,61073.0,61072.0,0.12954]
[1723606118757,0.09788043,61073.0,61072.0,0.62074]
[1723606118957,0.09788043,61073.0,61072.0,0.12954]
[1723606119154,0.36989084,61082.0,61071.0,0.05]
[1723606119155,0.081835,61076.0,61071.0,0.05]
[1723606119457,0.06522789,61077.0,61071.0,0.001]
[1723606119655,0.0463,61075.0,61071.0,0.001]
[1723606119858,0.0463,61075.0,61071.0,0.002]
[1723606119859,0.11152789,61075.0,61071.0,0.002]
[1723606120245,0.128136,61075.0,61071.0,0.002]
[1723606120653,0.081837,61074.0,61071.0,0.002]
[1723606121248,0.0463,61075.0,61072.0,0.001]
[1723606121249,0.081839,61073.0,61072.0,0.001]
[1723606121956,0.08184,61072.0,61071.0,0.002]
[1723606122553,0.06522789,61076.0,61071.0,0.001]
[1723606122753,0.14706289,61076.0,61071.0,0.001]
[1723606122954,0.06522789,61076.0,61071.0,0.001]
[1723606123356,0.081837,61074.0,61071.0,0.001]
[1723606124249,0.081837,61074.0,61071.0,0.002]
[1723606127162,0.06522789,61075.0,61071.0,0.002]
[1723606127365,0.06522789,61076.0,61073.0,0.081838]
[1723606127563,0.06522789,61076.0,61074.0,0.081837]
[1723606127767,0.06522789,61078.0,61074.0,0.3608]
[1723606128155,0.06522789,61078.0,61075.0,0.0478]
[1723606128360,0.06522789,61082.0,61078.0,0.081832]
[1723606128660,0.07522789,61082.0,61080.0,0.081829]
[1723606128864,0.01,61082.0,61080.0,0.081829]
[1723606129359,0.06522789,61083.0,61080.0,0.081829]
[1723606130358,0.00886625,61084.0,61082.0,0.2829]
[1723606130659,0.0489,61094.0,61083.0,0.047]
[1723606130660,0.06522789,61091.0,61083.0,0.047]
[1723606130855,0.0489,61094.0,61091.0,0.081815]
[1723606130856,0.00889286,61092.0,61091.0,0.081815]
[1723606131164,0.11412789,61094.0,61086.0,0.44262]
[1723606132055,0.11412789,61094.0,61091.0,0.001]
[1723606132658,0.081815,61091.0,61086.0,0.001]
[1723606133064,0.06522789,61091.0,61086.0,0.001]
[1723606133264,0.42602789,61092.0,61086.0,0.001]
[1723606134164,0.3608,61087.0,61081.0,0.14924564]
[1723606134469,0.17908128,61084.0,61081.0,0.14924564]
[1723606134654,0.15213098,61083.0,61082.0,0.081827]
[1723606135562,0.15213098,61083.0,61082.0,0.572947]
[1723606135960,0.26095908,61083.0,61082.0,0.572947]
[1723606136575,0.31491691,61083.0,61082.0,0.081827]
[1723606137065,0.15213098,61083.0,61082.0,0.081827]
[1723606137264,0.15213098,61083.0,61082.0,0.082827]
[1723606137456,0.31491691,61083.0,61082.0,0.082827]
[1723606138054,0.16278593,61084.0,61083.0,0.081825]
[1723606138261,0.14837369,61084.0,61083.0,0.081825]
[1723606139364,0.27724983,61084.0,61083.0,0.081825]
[1723606139664,0.14837369,61084.0,61083.0,0.082825]
[1723606140164,0.15037369,61084.0,61083.0,0.002]
[1723606140968,0.15037369,61084.0,61076.0,0.00024558]
[1723606141265,0.442632,61079.0,61076.0,0.00024558]
[1723606142862,0.443632,61079.0,61076.0,0.00124558]
[1723606143367,0.443632,61079.0,61076.0,0.00224558]
[1723606144370,0.3618,61079.0,61076.0,0.00224558]
[1723606149369,0.14840085,61078.0,61073.0,0.07080582]
[1723606149571,0.14690151,61076.0,61073.0,0.07080582]
[1723606149767,0.14840085,61075.0,61073.0,0.07080582]
[1723606149969,0.09818652,61074.0,61073.0,0.07080582]
[1723606150878,0.13824767,61074.0,61073.0,0.07080582]
[1723606151071,0.09818621,61074.0,61073.0,0.07080582]
[1723606152273,0.2317772,61074.0,61073.0,0.07080582]
[1723606152579,0.10218621,61074.0,61073.0,0.07080582]
[1723606154073,0.2327772,61074.0,61073.0,0.07080582]
[1723606155884,0.23277732,61074.0,61073.0,0.07080582]
[1723606156377,0.004,61074.0,61073.0,0.19547418]
[1723606159776,0.003,61075.0,61074.0,0.081838]
[1723606159976,0.003,61075.0,61074.0,0.20650636]
[1723606160382,0.003,61075.0,61074.0,0.20649955]
[1723606162284,0.003,61075.0,61074.0,0.30370167]
[1723606162783,0.3608,61077.0,61076.0,0.081835]
[1723606162985,0.3608,61077.0,61076.0,0.20649655]
[1723606164482,0.3608,61077.0,61076.0,0.082835]
[1723606164687,0.3608,61077.0,61076.0,0.083835]
[1723606165084,0.0472,61082.0,61076.0,0.083835]
[1723606165385,0.3608,61081.0,61080.0,0.081829]
[1723606165589,0.36104422,61089.0,61079.0,0.08095216]
[1723606165887,0.36104422,61089.0,61088.0,0.1131]
[1723606166483,0.36104422,61089.0,61088.0,0.16166432]
[1723606167188,0.36104422,61089.0,61088.0,0.1131]
[1723606167391,0.36104422,61089.0,61088.0,0.16165629]
[1723606167686,0.36104422,61089.0,61088.0,0.194919]
[1723606167890,0.36104422,61089.0,61088.0,0.081819]
[1723606168384,0.36104422,61089.0,61088.0,0.083819]
[1723606169988,0.36104422,61089.0,61088.0,0.09274366]
[1723606171587,0.00024422,61089.0,61088.0,0.50018775]
[1723606172284,0.3608,61094.0,61093.0,0.081812]
[1723606172802,0.3608,61094.0,61093.0,0.16265022]
[1723606172992,0.3608,61094.0,61093.0,0.28727855]
[1723606173187,0.3608,61104.0,61102.0,0.081799]
[1723606173393,0.3608,61104.0,61103.0,0.081799]
[1723606173588,0.3608,61104.0,61103.0,0.14643921]
[1723606173790,0.3608,61104.0,61103.0,0.081799]
[1723606174792,0.3608,61104.0,61103.0,0.082799]
[1723606175188,0.08165555,61114.0,61104.0,0.081797]
[1723606175386,0.3608,61119.0,61113.0,0.04835874]
[1723606175586,0.3608,61119.0,61118.0,0.081778]
[1723606177103,0.3608,61119.0,61118.0,0.13013674]
[1723606177397,0.3608,61119.0,61118.0,0.081778]
[1723606177994,0.6436,61119.0,61118.0,0.001]
[1723606178196,1.53444,61119.0,61112.0,0.00024558]
[1723606178395,0.3608,61113.0,61112.0,0.00024558]
[1723606180095,0.3608,61113.0,61112.0,0.001]
[1723606180096,1.13448,61113.0,61112.0,0.001]
[1723606180592,1.53448,61113.0,61112.0,0.001]
[1723606180788,1.53448,61113.0,61107.0,0.04835874]
[1723606180989,0.3608,61108.0,61107.0,0.04835874]
[1723606181194,0.081799,61103.0,61100.0,1e-08]
[1723606181492,0.6436,61108.0,61093.0,0.00017467]
[1723606181493,0.3608,61101.0,61093.0,0.00017467]
[1723606181689,0.3608,61095.0,61093.0,0.08198667]
[1723606181889,0.3608,61095.0,61094.0,0.081811]
[1723606182488,0.3608,61095.0,61093.0,0.00017467]
[1723606183197,0.3628,61095.0,61093.0,0.00017467]
[1723606185987,0.3608,61094.0,61093.0,0.00017467]
[1723606187495,0.3618,61094.0,61093.0,0.00017467]
[1723606188301,0.3628,61094.0,61093.0,0.00017467]
[1723606190098,0.36292281,61094.0,61088.0,0.00024558]
[1723606190299,0.3608,61089.0,61088.0,0.00024558]
[1723606190901,0.3608,61089.0,61088.0,0.08206458]
[1723606192197,0.3608,61089.0,61088.0,0.08606458]
[1723606192594,0.3608,61089.0,61088.0,0.08806458]
[1723606201703,0.3608,61092.0,61088.0,0.08806458]
[1723606201906,0.3608,61092.0,61089.0,0.130217]
[1723606202207,0.3608,61092.0,61089.0,0.180017]
[1723606202995,0.3608,61092.0,61089.0,0.183017]
[1723606203599,0.00012281,61094.0,61089.0,0.183017]
[1723606203804,0.3608,61092.0,61089.0,0.183017]
[1723606204305,0.3608,61092.0,61090.0,0.081816]
[1723606204807,0.00012281,61094.0,61090.0,0.081816]
[1723606205003,0.3608,61092.0,61090.0,0.081816]
[1723606205511,0.3608,61092.0,61091.0,0.081814]
[1723606206705,0.3608,61092.0,61091.0,0.082814]
[1723606206897,0.3608,61092.0,61091.0,0.001]
[1723606208505,0.30409171,61092.0,61091.0,0.573894]
[1723606208713,0.3608,61106.0,61092.0,0.49104]
[1723606208909,0.3608,61106.0,61100.0,0.442602]
[1723606209700,5.622e-05,61101.0,61100.0,0.442602]
[1723606209904,0.0474,61114.0,61100.0,0.442602]
[1723606209905,0.08129986,61115.0,61100.0,1.2518]
[1723606210109,0.08129986,61115.0,61107.0,0.3608]
[1723606211011,0.00024558,61114.0,61107.0,0.3608]
[1723606211311,0.00024558,61114.0,61107.0,0.442593]
[1723606211813,0.06613401,61108.0,61107.0,0.442593]
[1723606212515,0.06613401,61108.0,61107.0,0.443593]
[1723606213013,0.06713401,61108.0,61107.0,0.3628]
[1723606213414,0.06713401,61108.0,61107.0,0.002]
[1723606213803,0.06713401,61108.0,61107.0,0.01076967]
[1723606214008,0.06713401,61108.0,61107.0,0.002]
[1723606214413,0.71073401,61108.0,61107.0,0.002]
[1723606214716,1.68344501,61108.0,61107.0,0.002]
[1723606215617,1.60165401,61108.0,61107.0,0.002]
[1723606215920,0.71073401,61108.0,61107.0,0.002]
[1723606216219,0.42793401,61108.0,61107.0,0.002]
[1723606218422,1.60165401,61108.0,61107.0,0.002]
[1723606218615,1.96245401,61108.0,61107.0,0.002]
[1723606219321,1.56245401,61108.0,61107.0,0.002]
[1723606219819,1.96245401,61108.0,61107.0,0.002]
[1723606220217,0.7236,61108.0,61107.0,0.002]
[1723606220808,1.0064,61108.0,61107.0,0.002]
[1723606221013,1.088191,61108.0,61107.0,0.002]
[1723606221214,1.579111,61108.0,61107.0,0.002]
[1723606221414,1.979111,61108.0,61107.0,0.002]
[1723606222218,1.0064,61108.0,61107.0,0.002]
[1723606222416,0.3628,61108.0,61107.0,0.002]
[1723606226129,0.38931339,61108.0,61107.0,0.002]
[1723606227515,0.47110439,61108.0,61107.0,0.002]
[1723606230632,0.67211339,61108.0,61101.0,0.00024558]
[1723606230819,0.3608,61102.0,61101.0,0.00024558]
[1723606231024,0.44239109,61102.0,61101.0,0.00024558]
[1723606231223,0.3608,61102.0,61101.0,0.00024558]
[1723606232523,0.3628,61102.0,61101.0,0.00124558]
[1723606233530,0.38931486,61102.0,61101.0,0.00224558]
[1723606234326,0.38931486,61102.0,61101.0,0.08404558]
[1723606234327,0.002,61102.0,61101.0,0.08404558]
[1723606234518,0.005,61102.0,61101.0,0.08404558]
[1723606238332,0.44743727,61102.0,61101.0,0.00224558]
[1723606238632,0.3658,61102.0,61101.0,0.00224558]
[1723606240626,0.005,61102.0,61101.0,0.08404558]
[1723606241128,0.005,61102.0,61101.0,0.13284558]
[1723606241735,0.005,61102.0,61101.0,0.05104558]
[1723606245035,0.005,61102.0,61101.0,0.13284558]
[1723606247043,0.005,61102.0,61101.0,0.25745737]
[1723606249845,0.005,61102.0,61101.0,0.13284558]
[1723606252140,0.005,61102.0,61101.0,0.25745705]
[1723606253838,0.03151222,61102.0,61101.0,0.13284558]
[1723606254441,0.06309856,61102.0,61101.0,0.13284558]
[1723606257652,0.06309856,61102.0,61101.0,0.00224558]
[1723606259143,0.03151222,61102.0,61101.0,0.00224558]
[1723606259453,0.14461222,61102.0,61101.0,0.00224558]
[1723606260345,0.03151222,61102.0,61101.0,0.00224558]
[1723606261455,0.03151222,61102.0,61101.0,0.19714558]
[1723606261858,0.00024558,61114.0,61112.0,0.081784]
[1723606262047,0.00024558,61114.0,61113.0,0.16274181]
[1723606262253,0.00024558,61114.0,61113.0,0.26389703]
[1723606262449,0.11334558,61114.0,61113.0,0.21559703]
[1723606262754,0.11334558,61114.0,61113.0,0.08092462]
[1723606263053,0.11534558,61114.0,61112.0,0.001]
[1723606263256,0.09834558,61114.0,61113.0,0.001]
[1723606263456,0.21144558,61114.0,61113.0,0.06575386]
[1723606263643,0.20944558,61114.0,61113.0,0.001]
[1723606263843,0.21144558,61114.0,61113.0,0.002]
[1723606264051,0.04974558,61114.0,61113.0,0.002]
[1723606264249,0.11734558,61114.0,61113.0,0.002]
[1723606264949,0.11534558,61114.0,61113.0,0.001]
[1723606266054,0.11534558,61114.0,61113.0,0.002]
[1723606266256,0.11534558,61114.0,61113.0,0.083784]
[1723606266752,0.11534558,61114.0,61113.0,0.002]
[1723606267943,0.11334558,61114.0,61113.0,0.001]
[1723606268143,0.11334558,61114.0,61113.0,0.002]
[1723606268556,0.00024558,61114.0,61113.0,0.1151]
[1723606269059,0.00024558,61114.0,61113.0,0.196884]
[1723606271447,0.06530407,61125.0,61113.0,0.196884]
[1723606271448,0.06530407,61125.0,61124.0,0.081769]
[1723606271654,0.3608,61146.0,61132.0,0.081758]
[1723606271852,0.1131,61144.0,61138.0,0.08175]
[1723606272162,0.3608,61146.0,61138.0,0.08175]
[1723606272657,0.1131,61144.0,61138.0,0.13155]
[1723606273360,0.4739,61146.0,61138.0,0.13155]
[1723606273751,0.1131,61144.0,61138.0,0.13155]
[1723606273952,0.3608,61146.0,61138.0,0.13255]
[1723606274357,0.3608,61146.0,61138.0,0.13155]
[1723606274661,0.3608,61146.0,61138.0,0.08275]
[1723606274858,0.45875611,61141.0,61138.0,0.001]
[1723606275059,0.3608,61146.0,61138.0,0.001]
[1723606275254,0.3608,61146.0,61138.0,0.08275]
[1723606275454,0.3608,61146.0,61138.0,0.08375]
[1723606275860,0.3608,61154.0,61145.0,0.081741]
[1723606276063,0.3608,61159.0,61158.0,0.081724]
[1723606276559,0.1361,61159.0,61158.0,0.572244]
[1723606276763,0.09795611,61175.0,61158.0,1.17312]
[1723606276960,0.12752165,61174.0,61169.0,0.3608]